[Event "Titled Tuesday Blitz May 31 Late 2022"]
[White "Karas, Marek"]
[Black "Hernandez Gonzalez, William"]
[WhiteFideId "14928558"]
[BlackFideId "3509915"]
[WhiteElo "2271"]
[BlackElo "2279"]
[Result "0-1"]
[Round "04"]
[TimeControl "180+1"]
[Date "2022.06.01"]
[WhiteClock "0:00:03"]
[BlackClock "0:00:17"]

1. d4 {[%clk 0:03:00]}  Nf6 {[%clk 0:02:59]} 2. Nf3 {[%clk 0:03:00]}  e6 {[%clk 0:02:55]} 3. c4 {[%clk 0:03:00]}  Bb4+ {[%clk 0:02:55]} 4. Nc3 {[%clk 0:02:59]}  c5 {[%clk 0:02:54]} 5. e3 {[%clk 0:02:58]}  Bxc3+ {[%clk 0:02:54]} 6. bxc3 {[%clk 0:02:58]}  Nc6 {[%clk 0:02:55]} 7. Bd3 {[%clk 0:02:59]}  d6 {[%clk 0:02:54]} 8. O-O {[%clk 0:02:59]}  b6 {[%clk 0:02:54]} 9. e4 {[%clk 0:02:59]}  e5 {[%clk 0:02:54]} 10. d5 {[%clk 0:02:59]}  Na5 {[%clk 0:02:54]} 11. Bg5 {[%clk 0:02:59]}  h6 {[%clk 0:02:52]} 12. Bh4 {[%clk 0:02:59]}  g5 {[%clk 0:02:51]} 13. Bg3 {[%clk 0:02:59]}  Qe7 {[%clk 0:02:47]} 14. h4 {[%clk 0:02:54]}  Nh5 {[%clk 0:02:37]} 15. Re1 {[%clk 0:02:20]}  Nf4 {[%clk 0:02:33]} 16. Bxf4 {[%clk 0:02:16]}  gxf4 {[%clk 0:02:33]} 17. g3 {[%clk 0:01:57]}  Rg8 {[%clk 0:02:30]} 18. Kh2 {[%clk 0:01:58]}  Qf6 {[%clk 0:02:29]} 19. Rf1 {[%clk 0:01:29]}  Bg4 {[%clk 0:02:14]} 20. Be2 {[%clk 0:01:29]}  O-O-O {[%clk 0:02:12]} 21. Nd2 {[%clk 0:01:26]}  h5 {[%clk 0:01:50]} 22. Bxg4+ {[%clk 0:01:20]}  Rxg4 {[%clk 0:01:49]} 23. Qf3 {[%clk 0:01:05]}  Rdg8 {[%clk 0:01:46]} 24. Rg1 {[%clk 0:00:54]}  Kc7 {[%clk 0:01:23]} 25. Rg2 {[%clk 0:00:29]}  Nxc4 {[%clk 0:00:59]} 26. Nxc4 {[%clk 0:00:08]}  fxg3+ {[%clk 0:00:58]} 27. Rxg3 {[%clk 0:00:08]}  Rf4 {[%clk 0:00:58]} 28. Qg2 {[%clk 0:00:03]}  Rxg3 {[%clk 0:00:46]} 29. Qxg3 {[%clk 0:00:04]}  Rxh4+ {[%clk 0:00:45]} 30. Kg2 {[%clk 0:00:04]}  Rg4 {[%clk 0:00:45]} 31. Ne3 {[%clk 0:00:03]}  Rxg3+ {[%clk 0:00:43]} 32. fxg3 {[%clk 0:00:04]}  Qg6 {[%clk 0:00:38]} 33. Nf5 {[%clk 0:00:04]}  Qg4 {[%clk 0:00:35]} 34. Re1 {[%clk 0:00:04]}  Qg5 {[%clk 0:00:35]} 35. Re3 {[%clk 0:00:04]}  h4 {[%clk 0:00:34]} 36. Kf2 {[%clk 0:00:03]}  hxg3+ {[%clk 0:00:32]} 37. Nxg3 {[%clk 0:00:04]}  b5 {[%clk 0:00:29]} 38. Ke2 {[%clk 0:00:01]}  a5 {[%clk 0:00:28]} 39. Rf3 {[%clk 0:00:02]}  Qc1 {[%clk 0:00:24]} 40. Rxf7+ {[%clk 0:00:01]}  Kb6 {[%clk 0:00:24]} 41. Rf2 {[%clk 0:00:02]}  Qxc3 {[%clk 0:00:23]} 42. Rf3 {[%clk 0:00:02]}  Qc2+ {[%clk 0:00:23]} 43. Ke3 {[%clk 0:00:03]}  c4 {[%clk 0:00:17]} 44. Nf5 {[%clk 0:00:03]}  c3 {[%clk 0:00:17]} 0-1


[Site "https://www.chess.com"]

[Event "Titled Tuesday Blitz May 31 Late 2022"]
[White "Kobalia, Mikhail"]
[Black "Richter, Nils"]
[WhiteFideId "4119150"]
[BlackFideId "12990809"]
[WhiteElo "2667"]
[BlackElo "2243"]
[Result "1-0"]
[Round "04"]
[TimeControl "180+1"]
[Date "2022.06.01"]
[WhiteClock "0:00:17"]
[BlackClock "0:00:02"]

1. e4 {[%clk 0:03:00]}  c5 {[%clk 0:02:59]} 2. Nf3 {[%clk 0:03:01]}  Nc6 {[%clk 0:02:58]} 3. Bb5 {[%clk 0:02:57]}  g6 {[%clk 0:02:56]} 4. Bxc6 {[%clk 0:02:56]}  dxc6 {[%clk 0:02:54]} 5. d3 {[%clk 0:02:57]}  Bg7 {[%clk 0:02:54]} 6. Nbd2 {[%clk 0:02:57]}  Qc7 {[%clk 0:02:51]} 7. a4 {[%clk 0:02:57]}  Nf6 {[%clk 0:02:40]} 8. Nc4 {[%clk 0:02:57]}  Nd7 {[%clk 0:02:39]} 9. a5 {[%clk 0:02:56]}  e5 {[%clk 0:02:38]} 10. Be3 {[%clk 0:02:51]}  O-O {[%clk 0:02:31]} 11. Qd2 {[%clk 0:02:51]}  Rb8 {[%clk 0:02:25]} 12. Bh6 {[%clk 0:02:49]}  b5 {[%clk 0:02:24]} 13. axb6 {[%clk 0:02:49]}  axb6 {[%clk 0:02:24]} 14. h4 {[%clk 0:02:32]}  b5 {[%clk 0:02:23]} 15. h5 {[%clk 0:02:30]}  bxc4 {[%clk 0:01:45]} 16. Bxg7 {[%clk 0:02:30]}  Kxg7 {[%clk 0:01:45]} 17. hxg6 {[%clk 0:02:31]}  hxg6 {[%clk 0:01:35]} 18. Qh6+ {[%clk 0:02:15]}  Kf6 {[%clk 0:01:35]} 19. Qh4+ {[%clk 0:02:15]}  Ke6 {[%clk 0:01:21]} 20. Ng5+ {[%clk 0:01:56]}  Kd6 {[%clk 0:01:19]} 21. dxc4 {[%clk 0:01:56]}  Qb6 {[%clk 0:01:00]} 22. b3 {[%clk 0:01:52]}  Qb4+ {[%clk 0:00:59]} 23. Kf1 {[%clk 0:01:51]}  Qc3 {[%clk 0:00:55]} 24. Ra2 {[%clk 0:01:20]}  Kc7 {[%clk 0:00:52]} 25. Rh3 {[%clk 0:01:20]}  Qd2 {[%clk 0:00:43]} 26. Rd3 {[%clk 0:01:19]}  Qf4 {[%clk 0:00:37]} 27. Qh6 {[%clk 0:01:11]}  Bb7 {[%clk 0:00:21]} 28. g3 {[%clk 0:01:10]}  Qc1+ {[%clk 0:00:20]} 29. Kg2 {[%clk 0:01:10]}  Qb1 {[%clk 0:00:16]} 30. Ra7 {[%clk 0:01:07]}  Rh8 {[%clk 0:00:15]} 31. Rxb7+ {[%clk 0:01:04]}  Kxb7 {[%clk 0:00:14]} 32. Rxd7+ {[%clk 0:01:03]}  Kb6 {[%clk 0:00:14]} 33. Nh7 {[%clk 0:00:56]}  Qxc2 {[%clk 0:00:15]} 34. Rxf7 {[%clk 0:00:53]}  Qxe4+ {[%clk 0:00:15]} 35. Kh2 {[%clk 0:00:53]}  Rb7 {[%clk 0:00:11]} 36. Rxb7+ {[%clk 0:00:52]}  Kxb7 {[%clk 0:00:12]} 37. Qg7+ {[%clk 0:00:52]}  Kb6 {[%clk 0:00:12]} 38. Qxh8 {[%clk 0:00:53]}  Qf3 {[%clk 0:00:12]} 39. Qd8+ {[%clk 0:00:41]}  Ka6 {[%clk 0:00:10]} 40. Kg1 {[%clk 0:00:32]}  e4 {[%clk 0:00:11]} 41. Qd2 {[%clk 0:00:19]}  Qf5 {[%clk 0:00:06]} 42. Ng5 {[%clk 0:00:18]}  Qf3 {[%clk 0:00:02]} 43. Qe3 {[%clk 0:00:17]}  Qd1+ {[%clk 0:00:01]} 44. Kg2 {[%clk 0:00:17]}  Qc2 {[%clk 0:00:02]} 45. Nxe4 {[%clk 0:00:17]}  Kb6 {[%clk 0:00:02]} 46. Nxc5 {[%clk 0:00:17]} 1-0


[Site "https://www.chess.com"]

[Event "Titled Tuesday Blitz May 31 Late 2022"]
[White "Kollars, Dmitrij"]
[Black "Lobanov, Sergei"]
[WhiteFideId "12909572"]
[BlackFideId "24183750"]
[WhiteElo "2584"]
[BlackElo "2524"]
[Result "0-1"]
[Round "04"]
[TimeControl "180+1"]
[Date "2022.05.31"]
[WhiteClock "0:00:12"]
[BlackClock "0:00:03"]

1. d4 {[%clk 0:03:00]}  Nf6 {[%clk 0:03:00]} 2. c4 {[%clk 0:03:00]}  e6 {[%clk 0:03:00]} 3. Nf3 {[%clk 0:02:59]}  d5 {[%clk 0:02:59]} 4. g3 {[%clk 0:02:59]}  Bb4+ {[%clk 0:03:00]} 5. Bd2 {[%clk 0:02:58]}  Be7 {[%clk 0:03:00]} 6. Bg2 {[%clk 0:02:59]}  O-O {[%clk 0:02:59]} 7. O-O {[%clk 0:02:59]}  c6 {[%clk 0:02:59]} 8. Bc3 {[%clk 0:02:52]}  Ne4 {[%clk 0:02:55]} 9. Nbd2 {[%clk 0:02:46]}  f5 {[%clk 0:02:33]} 10. Qc2 {[%clk 0:02:42]}  Nd7 {[%clk 0:02:32]} 11. b4 {[%clk 0:02:40]}  a5 {[%clk 0:02:16]} 12. a3 {[%clk 0:02:25]}  b5 {[%clk 0:01:32]} 13. cxb5 {[%clk 0:02:11]}  cxb5 {[%clk 0:01:31]} 14. Nb3 {[%clk 0:02:11]}  a4 {[%clk 0:00:55]} 15. Nc5 {[%clk 0:02:11]}  Nb6 {[%clk 0:00:55]} 16. Ne5 {[%clk 0:02:06]}  Qc7 {[%clk 0:00:49]} 17. f3 {[%clk 0:01:52]}  Nd6 {[%clk 0:00:46]} 18. e4 {[%clk 0:01:33]}  Nbc4 {[%clk 0:00:46]} 19. exd5 {[%clk 0:01:11]}  Ne3 {[%clk 0:00:44]} 20. Qa2 {[%clk 0:01:11]}  Nxd5 {[%clk 0:00:43]} 21. Bd2 {[%clk 0:01:05]}  f4 {[%clk 0:00:38]} 22. Rac1 {[%clk 0:00:57]}  Qb6 {[%clk 0:00:32]} 23. Bh3 {[%clk 0:00:57]}  Nf5 {[%clk 0:00:29]} 24. Bxf5 {[%clk 0:00:41]}  Rxf5 {[%clk 0:00:30]} 25. g4 {[%clk 0:00:42]}  Rf8 {[%clk 0:00:23]} 26. Rfe1 {[%clk 0:00:42]}  Rd8 {[%clk 0:00:19]} 27. Kg2 {[%clk 0:00:41]}  Bh4 {[%clk 0:00:18]} 28. Re4 {[%clk 0:00:40]}  Bf6 {[%clk 0:00:16]} 29. Bxf4 {[%clk 0:00:27]}  Nxf4+ {[%clk 0:00:14]} 30. Rxf4 {[%clk 0:00:28]}  Bg5 {[%clk 0:00:15]} 31. Qd2 {[%clk 0:00:24]}  Bb7 {[%clk 0:00:12]} 32. h4 {[%clk 0:00:18]}  Bxf4 {[%clk 0:00:12]} 33. Qxf4 {[%clk 0:00:19]}  Rf8 {[%clk 0:00:09]} 34. Qe3 {[%clk 0:00:19]}  Rad8 {[%clk 0:00:06]} 35. Ncd7 {[%clk 0:00:17]}  Rxd7 {[%clk 0:00:04]} 36. Nxd7 {[%clk 0:00:18]}  Rxf3 {[%clk 0:00:04]} 37. Nxb6 {[%clk 0:00:15]}  Rxe3+ {[%clk 0:00:05]} 38. d5 {[%clk 0:00:16]}  Rxa3 {[%clk 0:00:04]} 39. Kf2 {[%clk 0:00:14]}  Bxd5 {[%clk 0:00:04]} 40. Rc7 {[%clk 0:00:12]}  Rb3 {[%clk 0:00:03]} 41. Nd7 {[%clk 0:00:13]}  a3 {[%clk 0:00:03]} 42. Ne5 {[%clk 0:00:13]}  g6 {[%clk 0:00:03]} 43. Nd7 {[%clk 0:00:11]}  Rf3+ {[%clk 0:00:02]} 44. Ke2 {[%clk 0:00:11]}  a2 {[%clk 0:00:03]} 45. Ra7 {[%clk 0:00:11]}  Rf7 {[%clk 0:00:02]} 46. Ra8+ {[%clk 0:00:11]}  Kg7 {[%clk 0:00:03]} 47. Nb6 {[%clk 0:00:12]}  Bxa8 {[%clk 0:00:03]} 0-1


[Site "https://www.chess.com"]

[Event "Titled Tuesday Blitz May 31 Late 2022"]
[White "Krishnan, Varun"]
[Black "Matlakov, Maxim"]
[WhiteFideId "5054508"]
[BlackFideId "4168003"]
[WhiteElo "2632"]
[BlackElo "2669"]
[Result "0-1"]
[Round "04"]
[TimeControl "180+1"]
[Date "2022.05.31"]
[WhiteClock "0:00:04"]
[BlackClock "0:02:04"]

1. e4 {[%clk 0:03:00]}  e5 {[%clk 0:02:59]} 2. Nf3 {[%clk 0:03:00]}  Nc6 {[%clk 0:03:00]} 3. Bb5 {[%clk 0:03:00]}  a6 {[%clk 0:02:59]} 4. Ba4 {[%clk 0:02:57]}  Bc5 {[%clk 0:02:55]} 5. O-O {[%clk 0:02:55]}  Nge7 {[%clk 0:02:55]} 6. c3 {[%clk 0:02:55]}  Ba7 {[%clk 0:02:53]} 7. d4 {[%clk 0:02:55]}  O-O {[%clk 0:02:43]} 8. d5 {[%clk 0:02:45]}  Nb8 {[%clk 0:02:37]} 9. Nxe5 {[%clk 0:02:33]}  d6 {[%clk 0:02:37]} 10. Nf3 {[%clk 0:02:32]}  Bg4 {[%clk 0:02:37]} 11. h3 {[%clk 0:02:23]}  Bh5 {[%clk 0:02:37]} 12. Bc2 {[%clk 0:02:16]}  Nd7 {[%clk 0:02:37]} 13. Bf4 {[%clk 0:02:16]}  Ng6 {[%clk 0:02:36]} 14. Bg3 {[%clk 0:02:14]}  Nge5 {[%clk 0:02:36]} 15. Nbd2 {[%clk 0:02:09]}  Re8 {[%clk 0:02:30]} 16. Bxe5 {[%clk 0:01:58]}  Nxe5 {[%clk 0:02:30]} 17. g4 {[%clk 0:01:57]}  Nxf3+ {[%clk 0:02:22]} 18. Qxf3 {[%clk 0:01:55]}  Bg6 {[%clk 0:02:23]} 19. Qg3 {[%clk 0:01:33]}  c6 {[%clk 0:02:20]} 20. dxc6 {[%clk 0:01:28]}  bxc6 {[%clk 0:02:21]} 21. Rad1 {[%clk 0:01:04]}  d5 {[%clk 0:02:20]} 22. Kg2 {[%clk 0:00:49]}  Qb6 {[%clk 0:02:15]} 23. Bb3 {[%clk 0:00:43]}  Bxe4+ {[%clk 0:02:09]} 24. Nxe4 {[%clk 0:00:43]}  Rxe4 {[%clk 0:02:10]} 25. Rde1 {[%clk 0:00:41]}  Rae8 {[%clk 0:02:09]} 26. Rxe4 {[%clk 0:00:38]}  Rxe4 {[%clk 0:02:10]} 27. Qd6 {[%clk 0:00:27]}  g6 {[%clk 0:02:10]} 28. Qd7 {[%clk 0:00:20]}  Re2 {[%clk 0:02:08]} 29. Kg3 {[%clk 0:00:09]}  Rxf2 {[%clk 0:02:06]} 30. Re1 {[%clk 0:00:08]}  Rf3+ {[%clk 0:02:06]} 31. Kh4 {[%clk 0:00:04]}  Qf2+ {[%clk 0:02:04]} 32. Kg5 {[%clk 0:00:05]}  f6+ {[%clk 0:02:03]} 33. Kh6 {[%clk 0:00:04]}  Qh4# {[%clk 0:02:04]} 0-1


[Site "https://www.chess.com"]

[Event "Titled Tuesday Blitz May 31 Late 2022"]
[White "Leitao, Rafael"]
[Black "Derraugh, Geordie"]
[WhiteFideId "2101246"]
[BlackFideId "2603950"]
[WhiteElo "2609"]
[BlackElo "2116"]
[Result "1-0"]
[Round "04"]
[TimeControl "180+1"]
[Date "2022.06.01"]
[WhiteClock "0:00:16"]
[BlackClock "0:00:24"]

1. e4 {[%clk 0:03:00]}  c5 {[%clk 0:02:59]} 2. Nf3 {[%clk 0:03:00]}  d6 {[%clk 0:03:00]} 3. d4 {[%clk 0:03:01]}  cxd4 {[%clk 0:03:01]} 4. Nxd4 {[%clk 0:03:02]}  Nf6 {[%clk 0:03:01]} 5. Nc3 {[%clk 0:03:02]}  a6 {[%clk 0:03:01]} 6. Be2 {[%clk 0:03:02]}  e5 {[%clk 0:03:00]} 7. Nb3 {[%clk 0:03:02]}  Be7 {[%clk 0:03:00]} 8. Be3 {[%clk 0:03:01]}  Be6 {[%clk 0:03:00]} 9. Nd5 {[%clk 0:03:00]}  Nbd7 {[%clk 0:02:58]} 10. Qd3 {[%clk 0:03:00]}  Bxd5 {[%clk 0:02:53]} 11. exd5 {[%clk 0:02:59]}  O-O {[%clk 0:02:52]} 12. O-O-O {[%clk 0:02:51]}  a5 {[%clk 0:02:42]} 13. a4 {[%clk 0:02:44]}  Nb6 {[%clk 0:02:40]} 14. Qb5 {[%clk 0:02:41]}  Nbxd5 {[%clk 0:02:33]} 15. Rxd5 {[%clk 0:02:40]}  Nxd5 {[%clk 0:02:34]} 16. Qxd5 {[%clk 0:02:40]}  Bg5 {[%clk 0:02:30]} 17. Kb1 {[%clk 0:02:23]}  Bxe3 {[%clk 0:02:30]} 18. fxe3 {[%clk 0:02:24]}  Qh4 {[%clk 0:02:29]} 19. Bb5 {[%clk 0:01:45]}  Qf2 {[%clk 0:02:28]} 20. Rf1 {[%clk 0:01:41]}  Qxe3 {[%clk 0:02:25]} 21. Bc4 {[%clk 0:01:41]}  Kh8 {[%clk 0:02:12]} 22. Ka2 {[%clk 0:01:31]}  f5 {[%clk 0:02:07]} 23. Qxd6 {[%clk 0:01:26]}  f4 {[%clk 0:01:56]} 24. Rd1 {[%clk 0:01:08]}  Rae8 {[%clk 0:01:46]} 25. Bb5 {[%clk 0:01:04]}  Rc8 {[%clk 0:01:43]} 26. Nxa5 {[%clk 0:01:01]}  h6 {[%clk 0:01:30]} 27. Nc4 {[%clk 0:00:59]}  Qe2 {[%clk 0:01:27]} 28. Nxe5 {[%clk 0:00:56]}  Qxc2 {[%clk 0:01:17]} 29. Ng6+ {[%clk 0:00:56]}  Kg8 {[%clk 0:01:17]} 30. Nxf8 {[%clk 0:00:49]}  Rxf8 {[%clk 0:01:17]} 31. Qd2 {[%clk 0:00:32]}  Qc7 {[%clk 0:01:07]} 32. Qd5+ {[%clk 0:00:32]}  Kh8 {[%clk 0:01:07]} 33. Bc4 {[%clk 0:00:27]}  Ra8 {[%clk 0:01:01]} 34. Bb3 {[%clk 0:00:26]}  Rf8 {[%clk 0:00:46]} 35. Qe6 {[%clk 0:00:24]}  f3 {[%clk 0:00:41]} 36. gxf3 {[%clk 0:00:24]}  Qxh2 {[%clk 0:00:41]} 37. Rd7 {[%clk 0:00:22]}  Qf4 {[%clk 0:00:35]} 38. Rxb7 {[%clk 0:00:18]}  Qxf3 {[%clk 0:00:36]} 39. Rf7 {[%clk 0:00:17]}  Qa8 {[%clk 0:00:28]} 40. Rxf8+ {[%clk 0:00:17]}  Qxf8 {[%clk 0:00:29]} 41. a5 {[%clk 0:00:17]}  Qa8 {[%clk 0:00:23]} 42. a6 {[%clk 0:00:15]}  h5 {[%clk 0:00:24]} 43. Qg8+ {[%clk 0:00:15]}  Qxg8 {[%clk 0:00:23]} 44. Bxg8 {[%clk 0:00:16]}  Kxg8 {[%clk 0:00:24]} 45. a7 {[%clk 0:00:16]} 1-0


[Site "https://www.chess.com"]

[Event "Titled Tuesday Blitz May 31 Late 2022"]
[White "Leschinsky, Gary"]
[Black "Rastbod, Ali"]
[WhiteFideId "30951321"]
[BlackFideId "12567477"]
[WhiteElo "1782"]
[BlackElo "2147"]
[Result "0-1"]
[Round "04"]
[TimeControl "180+1"]
[Date "2022.06.01"]
[WhiteClock "0:00:01"]
[BlackClock "0:00:06"]

1. d4 {[%clk 0:03:00]}  Nf6 {[%clk 0:02:59]} 2. c4 {[%clk 0:03:00]}  e6 {[%clk 0:02:54]} 3. Nc3 {[%clk 0:02:59]}  Bb4 {[%clk 0:02:50]} 4. f3 {[%clk 0:02:58]}  d5 {[%clk 0:02:48]} 5. a3 {[%clk 0:02:56]}  Be7 {[%clk 0:02:48]} 6. e4 {[%clk 0:02:53]}  dxe4 {[%clk 0:02:49]} 7. fxe4 {[%clk 0:02:54]}  c5 {[%clk 0:02:48]} 8. d5 {[%clk 0:02:54]}  exd5 {[%clk 0:02:49]} 9. exd5 {[%clk 0:02:54]}  O-O {[%clk 0:02:49]} 10. Be2 {[%clk 0:02:50]}  Bd6 {[%clk 0:02:48]} 11. Nf3 {[%clk 0:02:50]}  Bg4 {[%clk 0:02:41]} 12. O-O {[%clk 0:02:48]}  Nbd7 {[%clk 0:02:27]} 13. Bg5 {[%clk 0:02:42]}  a6 {[%clk 0:02:24]} 14. h3 {[%clk 0:02:39]}  Bxf3 {[%clk 0:02:22]} 15. Rxf3 {[%clk 0:02:38]}  Be5 {[%clk 0:02:15]} 16. Qd2 {[%clk 0:02:34]}  Qc7 {[%clk 0:02:09]} 17. Rf5 {[%clk 0:02:03]}  Rae8 {[%clk 0:01:58]} 18. Rc1 {[%clk 0:01:31]}  Qd6 {[%clk 0:01:48]} 19. Bf3 {[%clk 0:01:10]}  g6 {[%clk 0:01:24]} 20. Rxe5 {[%clk 0:01:01]}  Nxe5 {[%clk 0:01:21]} 21. Qf4 {[%clk 0:00:46]}  Nxf3+ {[%clk 0:00:42]} 22. Qxf3 {[%clk 0:00:47]}  Kg7 {[%clk 0:00:43]} 23. Rf1 {[%clk 0:00:36]}  Nd7 {[%clk 0:00:36]} 24. Qg4 {[%clk 0:00:35]}  f5 {[%clk 0:00:34]} 25. Qh4 {[%clk 0:00:34]}  Kg8 {[%clk 0:00:34]} 26. Kh1 {[%clk 0:00:28]}  Rf7 {[%clk 0:00:28]} 27. Bf4 {[%clk 0:00:28]}  Qf6 {[%clk 0:00:26]} 28. Qg3 {[%clk 0:00:27]}  Qd4 {[%clk 0:00:22]} 29. h4 {[%clk 0:00:24]}  Nf6 {[%clk 0:00:18]} 30. Bg5 {[%clk 0:00:19]}  Qxc4 {[%clk 0:00:13]} 31. Re1 {[%clk 0:00:13]}  Rxe1+ {[%clk 0:00:07]} 32. Qxe1 {[%clk 0:00:14]}  Ne4 {[%clk 0:00:08]} 33. d6 {[%clk 0:00:07]}  Nxd6 {[%clk 0:00:04]} 34. Qe5 {[%clk 0:00:06]}  Ne4 {[%clk 0:00:02]} 35. Nd5 {[%clk 0:00:07]}  Qf1+ {[%clk 0:00:02]} 36. Kh2 {[%clk 0:00:07]}  Nxg5 {[%clk 0:00:02]} 37. hxg5 {[%clk 0:00:04]}  Qf2 {[%clk 0:00:03]} 38. Nf6+ {[%clk 0:00:03]}  Rxf6 {[%clk 0:00:03]} 39. Qxf6 {[%clk 0:00:03]}  Qf4+ {[%clk 0:00:03]} 40. Kg1 {[%clk 0:00:03]}  Qe3+ {[%clk 0:00:03]} 41. Kh2 {[%clk 0:00:03]}  Qf4+ {[%clk 0:00:03]} 42. Kh1 {[%clk 0:00:04]}  Qd4 {[%clk 0:00:04]} 43. Qe6+ {[%clk 0:00:03]}  Kf8 {[%clk 0:00:04]} 44. Qc8+ {[%clk 0:00:03]}  Ke7 {[%clk 0:00:05]} 45. Qxb7+ {[%clk 0:00:03]}  Ke6 {[%clk 0:00:05]} 46. Qxa6+ {[%clk 0:00:04]}  Ke5 {[%clk 0:00:06]} 47. Qe2+ {[%clk 0:00:04]}  Kf4 {[%clk 0:00:05]} 48. Qe7 {[%clk 0:00:02]}  Qd1+ {[%clk 0:00:04]} 49. Kh2 {[%clk 0:00:02]}  Qh5+ {[%clk 0:00:04]} 50. Kg1 {[%clk 0:00:02]}  Qd1+ {[%clk 0:00:05]} 51. Kh2 {[%clk 0:00:03]}  Qd4 {[%clk 0:00:06]} 52. Qxh7 {[%clk 0:00:02]}  Kxg5 {[%clk 0:00:06]} 53. Qh3 {[%clk 0:00:02]}  Qxb2 {[%clk 0:00:05]} 54. Qg3+ {[%clk 0:00:02]}  Kf6 {[%clk 0:00:06]} 55. Qd6+ {[%clk 0:00:03]}  Kg5 {[%clk 0:00:06]} 56. Qxc5 {[%clk 0:00:03]}  Qb8+ {[%clk 0:00:06]} 57. Kh1 {[%clk 0:00:03]}  Kg4 {[%clk 0:00:05]} 58. Qd4+ {[%clk 0:00:03]}  f4 {[%clk 0:00:05]} 59. Qd7+ {[%clk 0:00:03]}  Kg5 {[%clk 0:00:05]} 60. Qd2 {[%clk 0:00:02]}  Qh8+ {[%clk 0:00:04]} 61. Kg1 {[%clk 0:00:02]}  Qa1+ {[%clk 0:00:05]} 62. Kh2 {[%clk 0:00:02]}  Qxa3 {[%clk 0:00:06]} 63. Qd5+ {[%clk 0:00:03]}  Kf6 {[%clk 0:00:05]} 64. Qf3 {[%clk 0:00:04]}  Qxf3 {[%clk 0:00:04]} 65. gxf3 {[%clk 0:00:03]}  Ke5 {[%clk 0:00:03]} 66. Kh3 {[%clk 0:00:04]}  Kd4 {[%clk 0:00:04]} 67. Kh4 {[%clk 0:00:02]}  Ke3 {[%clk 0:00:05]} 68. Kg4 {[%clk 0:00:02]}  g5 {[%clk 0:00:06]} 69. Kxg5 {[%clk 0:00:01]}  Kxf3 {[%clk 0:00:06]} 0-1


[Site "https://www.chess.com"]